[Event "Slovakian ECo-C Extraliga 2024-25"]
[Site "Slovakia"]
[Date "2025.01.18"]
[Round "3.2"]
[White "Kaczur, Florian"]
[Black "Finek, Vaclav"]
[Result "1/2-1/2"]
[Annotator "TA"]
[ECO "B27"]
[WhiteElo "2479"]
[BlackElo "2483"]
[PlyCount "70"]
[EventDate "2024.09.12"]
[EventType "team-tourn"]
[EventCountry "SVK"]
[SourceTitle "playchess.com"]
[Source "ChessBase"]
[SourceQuality "1"]
[TimeControl "5400+30"]

{[%evp 10,70,27,17,37,27,22,30,28,28,22,0,24,24,20,0,0,0,0,-1,0,0,8,0,0,0,0,0,0,0,0,1,8,16,16,12,12,6,51,36,25,10,55,48,62,47,87,30,27,20,38,38,34,25,29,22,12,0,66,-24,14,0,33]} 1. e4 {[%emt 0:10:51]} c5 {[%emt 0:00:03]} 2. Nf3 {[%emt 0:01:38]} g6 {[%emt 0:00:03]} 3. c3 {[%emt 0:00:04]} Bg7 {[%emt 0:00:02]} 4. d4 {[%emt 0:00:05]} cxd4 {[%emt 0:00:03]} 5. cxd4 {[%emt 0:00:04]} d5 {[%emt 0:00:02]} 6. e5 {[%emt 0:00:05]} Nh6 {[%emt 0:00:08] B27: Sicilian: 2 Nf3, unusual Black 2nd moves.} 7. h3 {[%emt 0:00:22]} O-O {[%emt 0:00:04][%cal Bh8f8,Bf8f6,Bf6e6][%mdl 32]} 8. Nc3 {[%emt 0:00:03]} f6 {[%emt 0:00:04] White has an edge.} 9. exf6 {[%emt 0:00:05]} Rxf6 {[%emt 0:00:30]} 10. Bg5 {[%emt 0:00:09]} Re6+ {[%emt 0:00:05]} 11. Be2 {[%emt 0:00:05]} Nc6 {[%emt 0:00:05]} 12. Bxh6 $146 {[%emt 0:00:12]} (12. g4 Nf7 13. Be3 Rd6 14. Qc2 e5 15. dxe5 Nfxe5 16. O-O-O d4 17. Bg5 Qf8 18. Ne4 {0-1 Groenhout,R (1863)-Stewart,S AUS-ch Res email 2020}) 12... Bxh6 {[%emt 0:00:03]} 13. Qb3 {[%emt 0:00:31]} Rd6 {[%emt 0:00:39]} 14. O-O {[%emt 0:00:08]} Bg7 {[%emt 0:00:03]} 15. Rad1 {[%emt 0:00:06]} a6 {[%emt 0:00:04] [#]} 16. Ne5 $1 {[%emt 0:00:08]} e6 {[%emt 0:00:04][%cal Oc6d4]} 17. f4 {[%emt 0:00:04]} b5 {[%emt 0:00:03] Prevents Na4} 18. Bf3 {[%emt 0:00:05]} Na5 {[%emt 0:00:10]} 19. Qc2 {[%emt 0:00:02]} Bd7 {[%emt 0:00:07]} 20. b3 {[%emt 0:00:03]} Rc8 {[%emt 0:00:04] [#]} 21. Qd2 {[%emt 0:00:05]} Nc6 {[%emt 0:00:07]} 22. Ne2 {[%emt 0:00:06]} Qb6 {[%emt 0:00:12]} 23. Kh1 {[%emt 0:00:10]} Nxe5 {[%emt 0:00:10]} 24. fxe5 {[%emt 0:00:05]} (24. dxe5 $5 Rdc6 $8 25. Nd4 $11) 24... Rdc6 {[%emt 0:00:03]} 25. Rc1 {[%emt 0:00:15] Wards off Rc2} b4 {[%emt 0:00:03]} 26. Rxc6 {[%emt 0:00:06]} Rxc6 {[%emt 0:00:05]} 27. Qg5 {[%emt 0:00:08] Qe7 is the strong threat.} Qc7 {[%emt 0:00:05]} 28. Bg4 {[%emt 0:00:07]} (28. Nf4 $16) 28... Be8 $11 {[%emt 0:00:03]} 29. Nf4 {[%emt 0:00:09]} Bf7 {[%emt 0:00:04] and ...h6 should not be overlooked} 30. Nd3 {[%emt 0:00:08]} Bf8 {[%emt 0:00:06]} 31. Kh2 {[%emt 0:00:06]} a5 {[%emt 0:00:03]} 32. Qf4 {[%emt 0:00:07]} Bg7 {[%emt 0:00:03]} 33. Kh1 {[%emt 0:00:08]} (33. Nc5 $2 Rxc5 34. Rf2 (34. dxc5 $2 Bxe5 $19) 34... Rc2 $19) 33... Be8 {[%emt 0:00:04]} (33... h5 $11 34. Bd1 Qe7) 34. Kh2 {[%emt 0:00:05] White is more active.} ({White should play} 34. Nc5 $14 Bf7 35. Rc1) 34... Bf7 {[%emt 0:00:15]} 35. Kh1 {[%emt 0:00:01]} ({Don't go for} 35. Nc5 $2 Rxc5 36. Rf2 (36. dxc5 $2 {perishes.} Bxe5 $19) 36... Rc2 37. Rxc2 Qxc2 $19) 35... Bf8 {[%emt 0:00:03] Weighted Error Value: White=0.09 (flawless) /Black=0.11 (very precise)   Mistake:       	White=2     	Black=1      Inaccurate:     	---       	Black=5      OK:         	White=13    	Black=13     Best:        	---       	Black=1} 1/2-1/2

[Event "Slovakian ECo-C Extraliga 2024-25"]
[Site "Slovakia"]
[Date "2025.01.18"]
[Round "3.2"]
[White "Mazur, Stefan"]
[Black "Tazbir, Marcin"]
[Result "0-1"]
[Annotator "TA"]
[ECO "B90"]
[WhiteElo "2444"]
[BlackElo "2502"]
[PlyCount "94"]
[EventDate "2024.09.12"]
[EventType "team-tourn"]
[EventCountry "SVK"]
[SourceTitle "playchess.com"]
[Source "ChessBase"]
[SourceQuality "1"]
[TimeControl "5400+30"]

{[%evp 12,94,14,10,31,22,35,25,39,37,28,34,34,32,32,33,39,33,33,-33,31,23,90,83,78,70,89,87,74,23,16,19,27,20,53,14,55,41,50,50,84,0,0,0,0,0,0,0,0,0,0,-14,-14,-14,-18,-144,-133,-139,-143,-126,-132,-159,-165,-149,-172,-248,-240,-292,-291,-476,-476,-503,-504,-568,-581,-712,-639,-631,-583,-628,-631,-776,-769,-791,-631]} 1. e4 {[%emt 0:00:12]} c5 {[%emt 0:00:04]} 2. Nf3 {[%emt 0:00:38][%cal Bg1f3,Bf3d4,Bd4e2,Be2c3][%mdl 32]} d6 {[%emt 0:00:06]} 3. d4 {[%emt 0:00:49]} cxd4 {[%emt 0:00:05]} 4. Nxd4 {[%emt 0:00:15]} Nf6 {[%emt 0:00:05]} 5. Nc3 {[%emt 0:00:09]} a6 {[%emt 0:00:05]} 6. h3 {[%emt 0:00:47]} e5 {[%emt 0:00:13]} 7. Nde2 {[%emt 0:00:13]} h5 {[%emt 0:00:02]} 8. g3 {[%emt 0:00:40]} b5 {[%emt 0:01:13]} 9. Nd5 {[%emt 0:04:06]} Bb7 {[%emt 0:01:21]} 10. Nec3 {[%emt 0:03:45]} Nbd7 {[%emt 0:00:08][%cal Ob5b4]} 11. Bg5 {[%emt 0:00:43]} Be7 {[%emt 0:04:13]} 12. Nxe7 {[%emt 0:05:31]} Qxe7 {[%emt 0:00:07]} 13. Bg2 {[%emt 0:00:34]} Qe6 {[%emt 0:02:31]} 14. O-O {[%emt 0:01:02]} Rc8 {[%emt 0:01:44][%cal Oc8c3]} 15. f4 {[%emt 0:16:06] [#]} (15. h4 $14) 15... Rxc3 {[%emt 0:09:43]} 16. bxc3 $14 {[%emt 0:05:18] f5 poses a challenge} Nxe4 {[%emt 0:05:31]} (16... Bxe4 $11 17. Re1 d5 (17... Bxg2 18. Kxg2 O-O 19. a4 $11)) 17. Bxe4 $16 {[%emt 0:11:20]} Bxe4 {[%emt 0:00:47] [#]} 18. f5 $1 {[%emt 0:00:06]} Qd5 {[%emt 0:11:58]} (18... Bxf5 $2 19. Qf3 $18) 19. Qxd5 {[%emt 0:00:31]} Bxd5 {[%emt 0:00:01] [#]} 20. Rad1 {[%emt 0:02:11]} (20. Rfd1 $1 $16 {[%cal Rd1d5]} Be4 (20... Nb6 $2 21. a4 $18) 21. Rxd6) 20... Bc4 $1 $11 {[%emt 0:05:02]} 21. Rxd6 {[%emt 0:01:08]} Bxf1 {[%emt 0:00:05]} 22. Kxf1 {[%emt 0:00:21][%cal Of1e2][%mdl 4096] Endgame KRB-KRN} f6 $1 {[%emt 0:00:12]} 23. Bc1 {[%emt 0:18:48]} (23. Rxa6 $5 O-O (23... fxg5 $2 24. Ra8+ Ke7 25. Rxh8 $18) 24. Be3 $11) 23... Kd8 {[%emt 0:04:18]} 24. Rxa6 {[%emt 0:02:34]} Kc7 $1 {[%emt 0:00:07]} 25. Be3 {[%emt 0:02:26]} Kb7 {[%emt 0:06:39]} 26. Re6 {[%emt 0:05:45]} ({White should play} 26. Ra5 $16) 26... Ra8 {[%emt 0:02:01]} 27. Ke2 {[%emt 0:01:15]} Rxa2 {[%emt 0:02:26]} 28. Kd3 {[%emt 0:00:17]} h4 {[%emt 0:04:08]} 29. gxh4 {[%emt 0:04:58] aiming for Re7.} Ra4 {[%emt 0:00:30]} 30. Bf2 {[%emt 0:06:42]} Rf4 {[%emt 0:01:25][%csl LRf2,LRf5]} 31. Ke3 {[%emt 0:00:06]} Nb6 {[%emt 0:02:38]} 32. Re7+ {[%emt 0:00:42]} Kc6 {[%emt 0:00:04]} 33. Rxg7 {[%emt 0:02:52]} (33. Re6+ $11 {was the only way to keep the balance.} Kc7 34. Re7+ Kc8 35. c4) 33... Nd5+ $17 {[%emt 0:01:24]} 34. Ke2 {[%emt 0:00:03]} Nxc3+ {[%emt 0:00:30]} 35. Ke1 {[%emt 0:00:12]} Rxf5 {[%emt 0:00:31]} 36. Rg6 {[%emt 0:03:11]} Kd5 {[%emt 0:06:31]} 37. Bb6 {[%emt 0:01:25]} Rf3 {[%emt 0:03:55][%cal Oc3e4]} 38. Bd8 {[%emt 0:01:00]} (38. h5) 38... Ke6 $19 {[%emt 0:00:25][%cal Oc3d5]} (38... Rxh3 39. Bxf6 Rh2 40. Rg8 $15) 39. h5 {[%emt 0:00:13]} Nd5 $1 {[%emt 0:00:11]} ({Weaker is} 39... Rxh3 40. Rxf6+ Kd7 (40... Kd5 41. h6 $11) 41. Ba5 $15) 40. Rh6 $2 {[%emt 0:01:01]} (40. h4 {keeps fighting.}) 40... Rxh3 {[%emt 0:00:15]} 41. Rh8 {[%emt 0:00:06]} Kf5 {[%emt 0:00:29]} 42. Ba5 {[%emt 0:00:05]} Ke4 {[%emt 0:03:19] aiming for ...Ke3.} 43. h6 {[%emt 0:00:23]} Ne3 {[%emt 0:01:29]} 44. h7 {[%emt 0:01:11]} Nxc2+ {[%emt 0:03:43]} 45. Kf2 {[%emt 0:00:07]} Ne3 {[%emt 0:00:50]} 46. Bd8 {[%emt 0:00:29]} Nd5 {[%emt 0:03:47]} 47. Kg2 {[%emt 0:00:58]} Rh5 {[%emt 0:00:51]} 0-1

[Event "Slovakian ECo-C Extraliga 2024-25"]
[Site "Slovakia"]
[Date "2025.01.18"]
[Round "3.2"]
[White "Ftacnik, Lubomir"]
[Black "Delgerdalai, Bayarjavkhlan"]
[Result "1-0"]
[Annotator "TA"]
[ECO "D40"]
[WhiteElo "2440"]
[BlackElo "2331"]
[PlyCount "111"]
[EventDate "2024.09.12"]
[EventType "team-tourn"]
[EventCountry "SVK"]
[SourceTitle "playchess.com"]
[Source "ChessBase"]
[SourceQuality "1"]
[TimeControl "5400+30"]

{[%evp 11,111,15,18,12,12,19,17,21,22,19,29,15,26,6,15,12,52,60,64,22,20,21,35,15,29,43,39,48,119,108,101,63,68,64,77,40,44,39,39,39,37,46,39,33,35,32,57,33,24,22,151,152,234,108,120,118,156,150,243,233,233,221,216,107,107,107,110,110,105,121,224,224,237,236,199,189,296,296,283,281,225,280,405,401,434,422,396,397,448,418,509,504,988,925,791,627,610,594,874,879,865,856]} 1. Nf3 {[%emt 0:00:04]} d5 {[%emt 0:00:22]} 2. d4 {[%emt 0:00:14]} Nf6 {[%emt 0:00:27]} 3. c4 {[%emt 0:00:12]} e6 {[%emt 0:01:36]} 4. Nc3 {[%emt 0:01:05]} c5 {[%emt 0:02:42]} 5. e3 {[%emt 0:03:16]} a6 {[%emt 0:00:07]} 6. cxd5 {[%emt 0:00:59]} exd5 {[%emt 0:00:26]} 7. g3 {[%emt 0:00:39]} Nc6 {[%emt 0:03:25]} 8. Bg2 {[%emt 0:00:14]} c4 {[%emt 0:05:49]} 9. Ne5 {[%emt 0:03:18]} Bb4 {[%emt 0:02:16]} 10. Bd2 {[%emt 0:03:18]} O-O {[%emt 0:03:44]} 11. O-O {[%emt 0:01:15]} Re8 {[%emt 0:03:44]} 12. Nxc6 {[%emt 0:05:11]} bxc6 {[%emt 0:03:19]} 13. b3 {[%emt 0:00:25]} Bf5 {[%emt 0:10:41]} 14. bxc4 {[%emt 0:06:57]} Bd3 {[%emt 0:02:06]} 15. Re1 {[%emt 0:02:00]} Bxc4 {[%emt 0:14:37]} 16. Na4 {[%emt 0:03:46]} Ba3 {[%emt 0:11:05]} 17. Rb1 {[%emt 0:08:21]} Ne4 {[%emt 0:08:49]} 18. Bb4 {[%emt 0:11:43]} Bxb4 {[%emt 0:03:15]} 19. Rxb4 {[%emt 0:00:06]} Rb8 {[%emt 0:13:11]} (19... Nd6 $14) 20. Rxb8 $16 {[%emt 0:04:09]} Qxb8 {[%emt 0:00:14]} 21. Qc2 {[%emt 0:00:46]} Nd6 $1 {[%emt 0:06:32]} 22. Rb1 {[%emt 0:06:55]} Qa7 {[%emt 0:01:12]} 23. Nc5 {[%emt 0:08:46]} Rb8 {[%emt 0:01:08] Against Qb2} 24. h4 {[%emt 0:04:09]} h6 {[%emt 0:00:58]} 25. Rb2 {[%emt 0:05:38]} a5 {[%emt 0:00:38]} 26. Qb1 {[%emt 0:01:06]} Rb5 {[%emt 0:00:31]} 27. a4 {[%emt 0:00:36]} Rxb2 {[%emt 0:00:03]} 28. Qxb2 {[%emt 0:00:06]} Qc7 {[%emt 0:00:38]} 29. Bh3 {[%emt 0:00:52]} g6 {[%emt 0:00:52]} 30. Nd7 {[%emt 0:04:35]} Bd3 {[%emt 0:00:30]} (30... Qb7 $1 $11 {remains equal.} 31. Qa1 Ne4) 31. Qa3 $1 $36 {[%emt 0:07:08][%mdl 2048] White has strong initiative.} Ba6 {[%emt 0:00:31]} (31... Be4 $16 32. Nf6+ Kh8) 32. Qc5 {[%emt 0:00:40]} (32. Nf6+ $1 $18 {has better winning chances.} Kh8 (32... Kg7 $2 33. Qxd6 Qxd6 34. Ne8+ Kf8 35. Nxd6 $18) 33. e4 dxe4 34. Qc3) 32... Kg7 {[%emt 0:00:29] and ...Bc8 should not be overlooked} 33. Ne5 {[%emt 0:01:09][%cal Oh3g2]} Bb7 {[%emt 0:00:27]} 34. Qa7 {[%emt 0:01:50] White has more active pieces.} Nc4 {[%emt 0:00:31]} (34... Qd8 $16 35. Bg4 Qc7) 35. Nxc4 $1 $18 {[%emt 0:01:45]} dxc4 {[%emt 0:00:02][%mdl 4096] Endgame KQB-KQB} 36. Qc5 {[%emt 0:00:08]} Ba6 {[%emt 0:00:59]} 37. Bf1 {[%emt 0:00:44]} (37. Bg2 $18 {and the rest is easy.}) 37... Qb7 {[%emt 0:00:31]} 38. Bxc4 {[%emt 0:01:02]} (38. Qxa5 $6 c3 39. Bxa6 (39. Qxa6 $2 Qxa6 40. Bxa6 c2 $19) 39... Qb3 40. Qe5+ Kg8 $11) 38... Qb1+ {[%emt 0:00:16]} 39. Kh2 {[%emt 0:01:30]} Bxc4 {[%emt 0:00:33]} 40. Qxc4 $16 {[%emt 0:00:02] KQ-KQ. White is a pawn up.} Qe4 {[%emt 0:00:36]} (40... Qf5 $16) 41. Qc5 $18 {[%emt 0:00:00]} Qf3 {[%emt 0:00:00]} 42. Qe5+ {[%emt 0:00:00]} (42. Qxa5 Qxf2+ 43. Kh3 Qf3 $11 (43... Qxe3 $2 44. Qe5+ Qxe5 45. dxe5 $18) (43... Qf1+ 44. Kh2 $11)) 42... Kg8 {[%emt 0:00:00]} 43. Qb8+ {[%emt 0:00:00]} ({Inferior is} 43. Qxa5 Qxf2+ 44. Kh3 Qf1+ (44... Qxe3 45. Qe5 $11) 45. Kh2 Qf2+ 46. Kh3 Qf1+ 47. Kh2 Qe2+ 48. Kh3 Qc4 $11 (48... Qxe3 49. Qa8+ Kg7 50. Qxc6 $11) (48... Qf1+ 49. Kh2 $11)) 43... Kg7 {[%emt 0:00:00]} (43... Kh7 {might work better.}) 44. Qf4 $1 {[%emt 0:00:00]} Qe2 {[%emt 0:00:00]} 45. Kg2 {[%emt 0:00:00]} Qc2 {[%emt 0:02:07]} 46. Qe5+ {[%emt 0:00:00]} Kh7 {[%emt 0:00:47]} (46... Kg8 $142 47. Qxa5 Qe4+ 48. Kf1 Qd3+ 49. Ke1 Qc4) 47. Qxa5 {[%emt 0:00:00]} Qe4+ {[%emt 0:00:04] [#]} 48. Kf1 $1 {[%emt 0:00:00]} Qd3+ {[%emt 0:00:41] [#]} 49. Ke1 $1 {[%emt 0:00:00]} Qb1+ {[%emt 0:00:57]} 50. Ke2 {[%emt 0:00:00]} Qc2+ {[%emt 0:00:16]} 51. Kf3 {[%emt 0:00:00]} f5 {[%emt 0:00:30]} (51... h5 $142 52. Qb4 Qf5+ 53. Kg2 Qe4+ 54. Kg1 c5 55. Qxc5 Qb1+ 56. Kg2 Qe4+ 57. Kh2 Qf3) 52. Qc7+ {[%emt 0:00:00]} Kg8 {[%emt 0:00:06]} 53. Qd8+ {[%emt 0:00:00]} Kf7 {[%emt 0:00:26]} 54. Qd7+ {[%emt 0:00:00]} Kf8 {[%emt 0:01:08]} 55. Qe6 {[%emt 0:00:00] Black must now prevent a5. Repels Qe4+} Qxa4 {[%emt 0:00:25]} 56. Qf6+ {[%emt 0:00:00]} 1-0

[Event "Slovakian ECo-C Extraliga 2024-25"]
[Site "Slovakia"]
[Date "2025.01.18"]
[Round "3.2"]
[White "Jakab, Bela"]
[Black "Laurusas, Tomas"]
[Result "1/2-1/2"]
[Annotator "TA"]
[ECO "B22"]
[WhiteElo "2346"]
[BlackElo "2580"]
[PlyCount "137"]
[EventDate "2024.09.12"]
[EventType "team-tourn"]
[EventCountry "SVK"]
[SourceTitle "playchess.com"]
[Source "ChessBase"]
[SourceQuality "1"]
[TimeControl "5400+30"]

{[%evp 27,137,11,8,-18,16,0,8,-1,0,0,22,0,1,-11,-12,-13,-17,-22,-11,-20,-32,-38,-9,-8,-13,-19,-8,-21,-7,-10,-3,-18,-18,-21,-5,-12,-10,-10,-4,-10,-10,-13,-8,-8,-8,-8,-8,-12,-6,-12,0,0,0,0,0,0,0,0,0,0,0,0,0,-10,0,-17,-3,-4,0,0,8,8,8,8,8,8,8,8,8,8,8,8,8,8,8,8,8,8,8,0,8,8,10,8,8,8,8,0,8,0,0,0,0,0,0,0,0,0,0,0,0,0]} 1. e4 {[%emt 0:00:06]} c5 {[%emt 0:00:08]} 2. Nf3 {[%emt 0:00:07]} e6 {[%emt 0:00:09]} 3. c3 {[%emt 0:00:08]} d5 {[%emt 0:02:44]} 4. exd5 {[%emt 0:02:24]} Qxd5 {[%emt 0:00:06]} 5. d4 {[%emt 0:00:06]} Nf6 {[%emt 0:00:25]} 6. Be2 {[%emt 0:00:28]} cxd4 {[%emt 0:07:48]} 7. cxd4 {[%emt 0:00:12]} Nc6 {[%emt 0:00:07]} 8. Nc3 {[%emt 0:00:22]} Qd6 {[%emt 0:00:12]} 9. O-O {[%emt 0:00:10]} Be7 {[%emt 0:00:05]} 10. Nb5 {[%emt 0:01:48]} Qd8 {[%emt 0:04:00]} 11. Bf4 {[%emt 0:00:21]} Nd5 {[%emt 0:00:09]} 12. Bg3 {[%emt 0:00:08]} O-O {[%emt 0:01:14]} 13. Rc1 {[%emt 0:01:47]} a6 {[%emt 0:08:38]} 14. Nc3 {[%emt 0:00:14]} Nf6 {[%emt 0:00:04]} 15. Qd2 {[%emt 0:07:11] B22: Sicilian: 2 c3.} Nh5 {[%emt 0:06:51]} 16. d5 $146 {[%emt 0:12:32]} (16. Be5 Nxe5 17. Nxe5 Nf6 18. Bf3 Rb8 19. Rfd1 Qd6 20. Qe2 Nd5 21. Nc4 Nxc3 22. Rxc3 Qf4 {½-½ Seger,R (2370)-Krallmann,M (2240) Werther Schloss op 2nd 1996 (4)}) 16... Nxg3 {[%emt 0:00:27]} 17. hxg3 {[%emt 0:00:12]} Nb4 {[%emt 0:05:31][%cal Rb4d5]} 18. Bc4 {[%emt 0:11:32]} exd5 {[%emt 0:05:47]} 19. Bxd5 {[%emt 0:08:25]} Bf5 {[%emt 0:11:28]} 20. Bxb7 {[%emt 0:13:34]} Rb8 {[%emt 0:02:51] [#]} 21. Be4 {[%emt 0:10:41]} Bxe4 {[%emt 0:02:07]} (21... Qxd2 {simplifies} 22. Nxd2 Bxe4 23. Ndxe4 f5) 22. Nxe4 {[%emt 0:02:04]} Nxa2 {[%emt 0:00:47]} 23. Ra1 {[%emt 0:02:56]} Qxd2 {[%emt 0:04:58]} 24. Nexd2 {[%emt 0:00:12] Excellent horsemanship.} Nb4 {[%emt 0:00:09]} 25. g4 {[%emt 0:04:39] The position is equal.} Bf6 {[%emt 0:06:54]} 26. Rfb1 {[%emt 0:00:30]} Rfe8 {[%emt 0:01:10]} 27. Ra4 {[%emt 0:00:23]} Re6 {[%emt 0:00:33]} 28. b3 {[%emt 0:02:22]} h6 {[%emt 0:04:02]} 29. Rc1 {[%emt 0:04:01]} Nd3 {[%emt 0:13:02]} 30. Rcc4 {[%emt 0:01:24]} Nb2 {[%emt 0:01:56][%cal Of6e7] [#] aiming for ...Be7!.} 31. Rab4 {[%emt 0:00:10]} Rd8 {[%emt 0:01:08]} 32. Rc7 {[%emt 0:03:13]} Nd3 {[%emt 0:02:18]} 33. Rbb7 {[%emt 0:00:40]} Ne5 {[%emt 0:02:40]} 34. Nxe5 {[%emt 0:03:43]} Bxe5 {[%emt 0:00:14]} 35. Rd7 {[%emt 0:00:12]} Rd6 {[%emt 0:02:22]} 36. Rxd8+ {[%emt 0:01:07]} Rxd8 $11 {[%emt 0:00:01][%mdl 4096] Endgame KRB-KRN} 37. Nf1 {[%emt 0:00:08]} Rd1 {[%emt 0:02:10]} 38. g3 {[%emt 0:00:45]} a5 {[%emt 0:02:38]} 39. Kg2 {[%emt 0:00:20]} Bc3 {[%emt 0:01:06]} 40. Ne3 {[%emt 0:01:36]} Rb1 {[%emt 0:00:37]} 41. Rb5 {[%emt 0:01:25]} Ra1 {[%emt 0:00:00]} 42. f4 {[%emt 0:00:00]} Ra2+ {[%emt 0:00:00]} 43. Kf3 {[%emt 0:00:00]} Be1 {[%emt 0:00:00]} 44. g5 {[%emt 0:00:00]} hxg5 {[%emt 0:00:00]} 45. fxg5 {[%emt 0:00:00]} Kh7 {[%emt 0:00:00]} 46. Kg4 {[%emt 0:00:00]} Re2 {[%emt 0:00:00]} 47. Nf5 {[%emt 0:00:00]} g6 {[%emt 0:02:34]} 48. Nd6 {[%emt 0:00:00]} Kg7 {[%emt 0:00:10]} 49. Rb7 {[%emt 0:00:00]} Rf2 {[%emt 0:00:44]} 50. Rb8 {[%emt 0:00:00] Threatens to win with Ne8+.} Bb4 {[%emt 0:00:52]} 51. Ne8+ {[%emt 0:02:37]} Kf8 {[%emt 0:00:02]} 52. Nf6+ {[%emt 0:00:28]} Ke7 {[%emt 0:00:04]} 53. Nd5+ {[%emt 0:02:28]} Kd6 {[%emt 0:01:16]} 54. Nxb4 {[%emt 0:00:16]} axb4 {[%emt 0:00:01]} 55. Rxb4 {[%emt 0:00:07] KR-KR. White is a pawn up.} Rb2 {[%emt 0:00:58]} 56. Rb7 {[%emt 0:00:39]} Ke6 {[%emt 0:00:13]} 57. Rb6+ {[%emt 0:00:05]} Ke5 {[%emt 0:00:24]} 58. Rb7 {[%emt 0:03:03]} Ke6 {[%emt 0:00:13]} 59. Kf3 {[%emt 0:00:13]} Rb1 {[%emt 0:00:12]} 60. b4 {[%emt 0:00:31]} Ke5 {[%emt 0:01:31]} 61. Re7+ {[%emt 0:02:41]} (61. Rxf7 $2 Rf1+ (61... Rxb4 62. Rf6 $11) 62. Ke3 Rxf7 $19) 61... Kd5 {[%emt 0:00:45]} 62. Rb7 {[%emt 0:02:00]} (62. Rxf7 $2 Rf1+ (62... Rxb4 63. Rf6 $11) 63. Ke3 Rxf7 $19) 62... Ke5 {[%emt 0:00:09]} 63. b5 {[%emt 0:00:30]} (63. Rxf7 $2 {is the wrong capture.} Rf1+ (63... Rxb4 64. Rf6 $11) 64. Ke3 Rxf7 $19) 63... Rb3+ {[%emt 0:00:06]} 64. Kg4 {[%emt 0:00:07]} Rb4+ {[%emt 0:00:04]} 65. Kh3 {[%emt 0:00:08]} Ke6 {[%emt 0:00:08]} 66. Rb6+ {[%emt 0:01:04]} Kf5 {[%emt 0:00:32]} 67. Rf6+ {[%emt 0:00:05]} Kxg5 {[%emt 0:00:04]} 68. Rxf7 {[%emt 0:00:02]} Rxb5 {[%emt 0:00:07]} 69. Rf4 {[%emt 0:00:06] An even fight not without its subleties.   Weighted Error Value: White=0.04 (flawless) /Black=0.05 (flawless)   Inaccurate:     	---       	Black=2      OK:         	White=18    	Black=19     Best:        	White=3     	Black=4} 1/2-1/2

[Event "Slovakian ECo-C Extraliga 2024-25"]
[Site "Slovakia"]
[Date "2025.01.18"]
[Round "3.2"]
[White "Bochnicka, Vladimir"]
[Black "Ponizil, Cyril"]
[Result "1-0"]
[Annotator "TA"]
[ECO "B31"]
[WhiteElo "2345"]
[BlackElo "2455"]
[PlyCount "73"]
[EventDate "2024.09.12"]
[EventType "team-tourn"]
[EventCountry "SVK"]
[SourceTitle "playchess.com"]
[Source "ChessBase"]
[SourceQuality "1"]
[TimeControl "5400+30"]

{[%evp 20,73,9,15,14,16,5,6,29,12,15,0,39,65,47,60,108,92,85,101,163,96,89,48,104,106,105,105,139,128,167,179,191,189,252,229,242,243,244,240,312,305,302,289,332,210,212,204,355,369,706,697,804,611,1073,1058]} 1. e4 {[%emt 0:00:03]} c5 {[%emt 0:00:04]} 2. Nf3 {[%emt 0:00:10]} Nc6 {[%emt 0:00:04]} 3. Bb5 {[%emt 0:00:35]} g6 {[%emt 0:00:06]} 4. O-O {[%emt 0:00:40]} Bg7 {[%emt 0:00:05]} 5. Re1 {[%emt 0:00:41]} Nf6 {[%emt 0:00:24]} 6. e5 {[%emt 0:00:50]} Nd5 {[%emt 0:00:06]} 7. Nc3 {[%emt 0:00:17]} Nc7 {[%emt 0:00:05]} 8. Bxc6 {[%emt 0:00:07]} dxc6 {[%emt 0:00:04]} 9. h3 {[%emt 0:05:44]} O-O {[%emt 0:02:07]} 10. d3 {[%emt 0:00:12]} Ne6 {[%emt 0:01:34]} 11. a4 $1 {[%emt 0:01:09][%mdl 4] is now more promising than 11.Ne4.} a5 {[%emt 0:00:07] B31: Sicilian: 2...Nc6 3 Bb5 g6.} 12. Be3 {[%emt 0:03:54]} Nd4 {[%emt 0:00:59]} 13. Bf4 {[%emt 0:01:45]} Ne6 {[%emt 0:15:00] The position is equal.} 14. Bg3 $146 {[%emt 0:05:14]} (14. Qc1 Nxf4 15. Qxf4 Bf5 16. Ne4 {½-½ Hracek,Z (2550)-Halvax,G (2458) AUT-chT 2324 2023 (11.3)}) 14... b6 {[%emt 0:00:09]} 15. Qd2 {[%emt 0:02:02]} f5 {[%emt 0:11:33]} 16. exf6 {[%emt 0:08:53]} exf6 {[%emt 0:00:20]} 17. Re2 {[%emt 0:01:55]} Ra7 {[%emt 0:05:22]} (17... f5 $14) 18. Rae1 $16 {[%emt 0:02:14]} Re7 {[%emt 0:08:58]} 19. Ne4 {[%emt 0:06:40] White is more active.} f5 {[%emt 0:20:43]} (19... Rd7 $16) 20. Neg5 {[%emt 0:22:43] Excellent horsemanship.} ({White should try} 20. Nd6 $1 $18 {[%cal Rd6c8] and Nxc8 should not be overlooked} f4 21. Nxc8 Qxc8 22. Bh2 (22. Bh4 Ree8 $16)) 20... Rfe8 {[%emt 0:01:42]} 21. Be5 {[%emt 0:05:02]} Nxg5 {[%emt 0:10:53] White now steadily converts the win.} ({Better is} 21... Nd4 $14 22. Nxd4 cxd4 23. Bxg7 Kxg7) 22. Qxg5 {[%emt 0:00:58][%cal Oe5c7]} Qd5 {[%emt 0:00:32][%cal Rg7e5]} 23. Qf4 $36 {[%emt 0:07:39][%mdl 2048] White has strong initiative.} b5 {[%emt 0:00:06]} 24. Re3 {[%emt 0:01:48]} Bf8 {[%emt 0:06:26]} 25. b3 {[%emt 0:00:43] White has a strong bishop and is better} h6 {[%emt 0:01:25] [#]} 26. h4 $1 {[%emt 0:00:48]} Re6 {[%emt 0:03:56] [#]} (26... bxa4 $142 27. Qxa4 (27. bxa4 Kh7 $18) 27... Kh7 28. Qxa5 c4 29. Qxd5 cxd5 30. dxc4 (30. bxc4 dxc4 31. dxc4 Bb7 $18) 30... dxc4 31. bxc4 Re6) 27. h5 $1 $18 {[%emt 0:03:24][%mdl 512]} Qd7 {[%emt 0:04:55]} (27... bxa4 28. bxa4) 28. hxg6 {[%emt 0:02:53]} Rxg6 {[%emt 0:00:01]} 29. Bc3 {[%emt 0:01:28]} Rg4 {[%emt 0:02:01] [#]} 30. Qh2 {[%emt 0:01:05]} Rxe3 {[%emt 0:00:24]} 31. Rxe3 {[%emt 0:00:20]} Qd5 {[%emt 0:01:40]} 32. Qe5 {[%emt 0:03:56]} (32. Bxa5 f4 33. c4 Qf5) 32... Qxe5 {[%emt 0:01:14]} 33. Nxe5 {[%emt 0:00:05]} Rg5 {[%emt 0:02:05]} (33... f4 34. Nxg4 fxe3) 34. f4 {[%emt 0:00:54]} ({Resist} 34. Bxa5 f4 35. Re1 Bh3 $18) ({Less strong is} 34. Nxc6 f4 35. Re4 bxa4 $14) 34... Rh5 {[%emt 0:00:31]} (34... Rg7 35. Nxc6 (35. Bxa5 c4 $16) 35... Rb7 36. Nxa5 (36. Bxa5 bxa4 37. bxa4 Bd7 $16) 36... Rb6 37. axb5 Bd7) 35. Rg3+ {[%emt 0:00:50] White is clearly winning.} Kh7 {[%emt 0:00:01]} 36. Ng6 {[%emt 0:00:20]} Bd6 {[%emt 0:00:32] [#]} 37. Ne7 $1 {[%emt 0:00:22] Weighted Error Value: White=0.21 (precise) /Black=0.62  Mistake:       	White=1     	Black=6      Inaccurate:     	White=2     	Black=3      OK:         	White=14    	Black=6      Best:        	---       	Black=1} 1-0